bitfinex/quotes_ETHUSD_20250822
["timestamp","ask_amount","ask_price","bid_price","bid_amount"]
[1755849129699,0.001,4343.5,4343.4,15.71069742]
[1755849129899,0.001,4343.5,4343.4,19.15559742]
[1755849130106,1e-08,4343.5,4343.4,19.15559742]
[1755849130299,1e-08,4343.5,4343.4,31.48856442]
[1755849130500,1e-08,4343.5,4343.4,21.48695542]
[1755849130813,1e-08,4343.5,4343.4,21.40591442]
[1755849131484,1e-08,4343.6,4343.5,5.96229077]
[1755849131810,1e-08,4343.6,4343.5,25.76090102]
[1755849131992,1e-08,4343.8,4343.7,0.66]
[1755849132188,1e-08,4343.8,4343.7,7.13388477]
[1755849132392,1e-08,4343.8,4343.7,7.57878477]
[1755849132589,0.2406,4345.2,4344.0,5.96202578]
[1755849132796,1e-08,4344.1,4344.0,16.63552553]
[1755849132995,1e-08,4344.1,4344.0,17.19562553]
[1755849133706,0.38025313,4346.8,4344.7,2.96165488]
[1755849133887,0.2406,4346.0,4344.7,18.40515463]
[1755849134086,0.02,4346.8,4344.7,19.22289788]
[1755849134281,0.0192,4344.8,4344.7,19.22289788]
[1755849135432,0.4727,4346.6,4345.7,2.96112525]
[1755849135722,0.2539,4345.8,4345.7,15.105925]
[1755849135890,0.2539,4345.8,4345.7,15.221125]
[1755849136099,0.4727,4346.3,4346.2,0.66]
[1755849136414,0.4727,4346.3,4346.2,4.6482]
[1755849136617,0.4727,4346.3,4346.2,3.9882]
[1755849136818,0.4727,4346.3,4346.2,0.1152]
[1755849137117,0.4727,4346.3,4346.2,3.873]
[1755849137422,0.099,4346.3,4346.2,3.9882]
[1755849137792,0.4713,4346.3,4346.2,3.873]
[1755849138519,0.4713,4346.3,4346.0,0.1152]
[1755849138825,0.3723,4346.2,4346.1,3.873]
[1755849139008,0.474,4346.2,4346.1,3.873]
[1755849139216,0.474,4346.2,4345.7,1.77]
[1755849139398,0.1017,4346.2,4345.7,1.77]
[1755849139599,0.3696,4346.1,4345.8,3.873]
[1755849139809,0.1044,4345.9,4345.8,3.873]
[1755849140004,0.4713,4345.9,4345.8,3.873]
[1755849140386,0.36018033,4347.1,4346.0,0.66]
[1755849140588,0.02269971,4348.0,4347.1,0.66]
[1755849140789,0.02269971,4348.0,4347.7,2.5977667]
[1755849141014,10.119,4347.8,4347.7,6.8480667]
[1755849141428,10.02,4347.8,4347.7,6.9632667]
[1755849141622,10.02,4347.8,4347.7,7.2609667]
[1755849141846,10.119,4347.8,4347.7,0.1152]
[1755849142001,10.4913,4347.8,4347.7,0.1152]
[1755849142203,10.119,4347.8,4347.7,6.1890667]
[1755849142524,10.119,4347.8,4347.7,6.3042667]
[1755849142894,10.119,4347.8,4347.7,6.9642667]
[1755849143730,10.02,4347.8,4347.7,7.7068667]
[1755849144293,1e-08,4347.8,4347.7,26.82489495]
[1755849144510,0.61725937,4352.5,4349.7,2.95900912]
[1755849144872,2.65757667,4352.3,4349.7,32.26993737]
[1755849145005,0.3751,4351.2,4349.7,32.71483737]
[1755849145197,1e-08,4350.8,4350.7,2.9584807]
[1755849145398,1e-08,4350.8,4350.7,26.73640895]
[1755849145592,1e-08,4350.8,4350.7,23.27330895]
[1755849145799,1e-08,4350.8,4350.7,7.8426807]
[1755849145999,0.49110001,4350.8,4350.7,1.8842]
[1755849146234,0.29090001,4350.8,4350.7,1.769]
[1755849146536,0.49300001,4350.8,4350.0,1.769]
[1755849146719,3.2002,4350.7,4350.1,3.966]
[1755849146892,0.64903,4350.6,4350.1,3.5737]
[1755849147091,2.29874488,4350.2,4350.1,3.5737]
[1755849147543,3.0,4351.5,4349.8,1.769]
[1755849147544,2.29853353,4350.6,4349.8,1.769]
[1755849147857,2.29811095,4351.4,4349.9,3.98998903]
[1755849148138,0.4067111,4351.3,4349.9,3.98998903]
[1755849148349,0.02,4351.8,4350.6,0.1152]
[1755849148554,0.02,4351.8,4350.7,6.409]
[1755849148755,0.02,4351.8,4351.0,0.66]
[1755849148963,0.02,4351.8,4351.5,0.1152]
[1755849149126,0.02,4351.8,4351.6,1.769]
[1755849149330,0.02,4351.8,4351.7,5.748]
[1755849149660,5.54968508,4351.8,4351.7,5.748]
[1755849150361,2.2982694,4351.1,4351.0,1.769]
[1755849150657,2.2982694,4351.1,4348.7,10.97542459]
[1755849150658,2.29858636,4350.5,4350.4,1.769]
[1755849150949,3.0,4351.2,4350.4,3.979]
[1755849151154,2.29800533,4351.6,4350.4,3.979]
[1755849151518,2.29848065,4350.8,4350.4,3.979]
[1755849151713,0.35982249,4351.4,4350.4,3.979]
[1755849152144,0.35982249,4351.4,4350.1,1.769]
[1755849152145,3.35982249,4351.4,4350.5,3.979]
[1755849152318,2.29853353,4350.6,4350.1,1.769]
[1755849152519,2.29874231,4350.3,4350.2,3.979]
[1755849152934,2.29815947,4351.4,4350.2,3.979]
[1755849152935,2.29839353,4350.9,4350.2,3.979]
[1755849153115,0.22983935,4350.8,4350.2,3.979]
[1755849153442,0.22983935,4350.8,4350.1,1.769]
[1755849153443,2.29874488,4350.2,4350.1,1.769]
[1755849153645,2.29874488,4350.2,4350.1,5.754]
[1755849153843,3.0,4350.5,4350.1,5.754]
[1755849154023,0.66,4351.6,4350.1,5.754]
[1755849154364,2.29874488,4350.2,4350.1,5.754]
[1755849154714,2.29869383,4350.3,4350.1,5.754]
[1755849155359,2.29874488,4350.2,4350.1,5.754]
[1755849155520,5.29852988,4350.7,4350.1,5.754]
[1755849155919,2.29853353,4350.6,4350.1,5.754]
[1755849156180,3.26583929,4350.5,4350.1,5.754]
[1755849157060,3.26583929,4350.5,4350.1,1.769]
[1755849157061,2.29874488,4350.2,4350.1,1.769]
[1755849157231,2.29874488,4350.2,4350.1,5.75]
[1755849157668,2.29874488,4350.2,4350.1,5.751]
[1755849157874,2.29874488,4350.2,4350.1,1.769]
[1755849158063,3.08506722,4350.2,4350.1,5.75]
[1755849158260,3.08506722,4350.2,4349.9,3.981]
[1755849158261,5.29879772,4350.1,4349.9,3.981]
[1755849158575,2.29890342,4349.9,4349.8,3.981]
[1755849158784,5.29810342,4349.9,4349.8,3.981]
[1755849158974,2.29911484,4349.5,4349.4,1.768]
[1755849159281,6.05893035,4349.5,4349.4,5.748]
[1755849161062,3.75981551,4349.5,4349.4,5.748]
[1755849161274,0.35991747,4349.8,4349.4,5.748]
[1755849161579,0.002,4351.1,4349.5,0.67833763]
[1755849161746,0.002,4351.1,4349.6,0.21050436]
[1755849161747,0.002,4350.6,4349.6,0.21050436]
[1755849161948,0.26802894,4350.6,4349.7,4.65629445]
[1755849162149,0.26802894,4350.6,4349.8,0.2334397]
[1755849162350,0.002,4350.6,4350.5,0.3153]
[1755849162573,0.002,4350.6,4350.5,4.2933]
[1755849162756,0.002,4350.6,4350.5,4.4228]
[1755849163440,0.002,4350.6,4350.5,3.978]
[1755849163861,0.002,4350.6,4350.5,4.94881047]
[1755849165694,0.002,4350.6,4350.5,8.02259683]
[1755849166608,0.002,4350.6,4350.5,1.08601047]
[1755849166805,0.002,4350.6,4350.5,5.06301047]
[1755849167189,0.002,4350.6,4350.5,1.08601047]
[1755849167410,0.002,4350.6,4350.5,5.06301047]
[1755849167892,0.002,4350.6,4350.5,4.8523]
[1755849168093,0.002,4350.6,4350.5,0.8753]
[1755849168296,0.002,4350.6,4350.5,4.8523]
[1755849168664,0.002,4350.6,4350.5,4.4075]
[1755849168872,0.002,4350.6,4350.5,4.0922]
[1755849169071,0.002,4350.6,4350.5,0.1152]
[1755849169309,0.002,4350.6,4350.5,4.8503]
[1755849170183,0.002,4350.6,4349.7,0.4448]
[1755849170383,0.002,4350.6,4350.1,1.768]
[1755849170572,2.29858715,4350.5,4350.2,3.974]
[1755849170880,0.4599079,4350.4,4350.3,0.02298692]
[1755849171072,0.002,4350.6,4350.1,1.768]
[1755849171269,2.29858636,4350.5,4350.2,3.974]
[1755849171574,2.29874488,4350.2,4350.1,1.768]
[1755849171878,2.75848404,4350.2,4350.1,1.768]
[1755849172080,2.75848404,4350.2,4350.1,5.741]
[1755849172478,2.75848404,4350.2,4350.1,5.95330772]
[1755849173196,2.75848404,4350.2,4350.1,5.95130772]
[1755849175518,6.25350081,4350.2,4350.1,5.94830772]
[1755849175670,6.25350081,4350.2,4349.0,0.001]
[1755849175671,2.29932629,4349.1,4349.0,0.001]
[1755849175875,5.52925892,4349.1,4349.0,0.001]
[1755849176100,6.02427569,4349.1,4349.0,0.001]
[1755849177502,6.64271827,4349.1,4349.0,0.001]
[1755849177696,6.02427569,4349.1,4349.0,0.001]
[1755849179109,6.3842716,4349.1,4349.0,0.001]
[1755849180903,6.38369167,4349.1,4349.0,0.001]
[1755849181214,0.66,4348.9,4347.4,3.972]
[1755849181422,2.2999609,4347.9,4347.4,3.972]
[1755849182106,5.66002883,4347.9,4347.4,3.972]
[1755849183412,5.65922883,4347.9,4347.4,3.972]
[1755849185114,5.65922883,4347.9,4347.5,0.4448]
[1755849185279,5.65922883,4347.9,4347.4,3.972]
[1755849185906,0.36006793,4347.9,4347.8,0.3353]
[1755849186076,3.969,4348.4,4347.8,0.7801]
[1755849186282,5.29975441,4348.3,4347.8,0.02]
[1755849186632,2.2999609,4347.9,4347.8,0.02]
[1755849187799,2.2999609,4347.9,4345.9,7.82698258]
[1755849187800,2.30049,4346.9,4345.4,2.2138]
[1755849187981,2.30049,4346.9,4345.7,4.4351]
[1755849188413,2.30049,4346.9,4345.9,0.4601]
[1755849188590,5.96049,4346.9,4345.8,3.995]
[1755849188792,11.15828084,4346.9,4345.8,3.995]
[1755849189110,11.15828084,4346.9,4346.8,1e-08]
[1755849189620,11.51850109,4346.9,4346.8,1e-08]
[1755849189795,12.01053749,4346.9,4346.8,1e-08]
[1755849190517,12.01003208,4346.9,4346.8,1e-08]
[1755849191381,11.51850109,4346.9,4346.8,1e-08]
[1755849191687,12.00957578,4346.9,4346.8,1e-08]
[1755849191891,0.66,4346.0,4345.3,1e-08]
[1755849192194,5.96128411,4345.4,4345.3,1e-08]
[1755849192396,9.93428411,4345.4,4345.3,1e-08]
[1755849192626,6.32162365,4345.4,4345.3,1e-08]
[1755849192829,11.15690672,4345.4,4345.3,1e-08]
[1755849193137,3.66,4345.3,4343.4,0.4601]
[1755849193297,2.30207877,4343.9,4343.1,2.2291]
[1755849193720,6.982,4344.8,4343.8,0.7745]
[1755849193892,0.8751,4344.7,4343.9,0.4601]
[1755849194094,3.0,4344.1,4343.9,0.4601]
[1755849194292,0.36040383,4344.2,4344.0,0.2944]
[1755849194721,0.36040383,4344.2,4344.1,0.4601]
[1755849195018,0.36040383,4344.2,4344.1,0.7545]
[1755849195592,3.983,4345.2,4344.1,0.7545]
[1755849195824,0.3983,4345.2,4344.2,0.48311919]
[1755849196035,0.36032844,4345.1,4344.3,2.30186681]
[1755849196328,2.30087148,4346.2,4345.0,0.2944]
[1755849196490,1.769,4346.5,4345.0,0.2944]
[1755849196697,2.30102138,4345.9,4345.1,0.4601]
[1755849197013,0.23010214,4345.8,4345.1,0.4601]
[1755849197193,2.53117565,4345.8,4345.1,0.4601]
[1755849197527,0.23010214,4345.8,4345.1,0.4601]
[1755849197713,3.984,4346.4,4345.1,0.4601]
[1755849197916,3.0,4346.3,4345.1,0.4601]
[1755849198116,2.30111988,4345.8,4345.1,0.4601]
[1755849198317,2.30112752,4345.7,4345.1,0.4601]
[1755849198516,2.3008882,4346.2,4345.1,0.4601]
[1755849198712,0.02,4345.8,4345.1,0.4601]
[1755849199095,2.3013288,4345.4,4344.8,1.77]
[1755849199333,2.30131254,4345.4,4344.8,1.77]
[1755849199502,3.0,4345.3,4344.9,0.4601]
[1755849199826,3.0,4345.3,4345.0,0.4601]
[1755849200025,3.0,4345.3,4344.8,1.77]
[1755849200226,0.36026354,4345.7,4345.2,0.2944]
[1755849200528,2.30150094,4345.0,4344.8,1.77]
[1755849200732,3.23015009,4344.9,4344.8,1.77]
[1755849200921,0.23015009,4344.9,4344.8,2.0644]
[1755849201098,2.30144895,4345.1,4344.8,2.5245]
[1755849201301,3.0,4345.1,4344.9,0.4601]
[1755849201619,3.0,4345.1,4345.0,0.2944]
[1755849201813,3.0,4345.1,4345.0,0.7545]
[1755849202649,5.301443,4345.1,4345.0,0.7545]
[1755849202802,3.0,4345.0,4344.8,1.77]
[1755849203005,3.0,4344.8,4343.7,0.4601]
[1755849203219,3.0,4344.6,4343.7,0.4601]
[1755849203422,2.9351152,4345.8,4343.6,1.77]
[1755849203598,3.66,4345.1,4343.9,0.4601]
[1755849203807,2.30182114,4344.4,4343.9,0.4601]
[1755849204004,0.36035978,4344.5,4344.3,0.2944]
[1755849204300,3.0,4345.3,4344.4,0.4601]
[1755849204635,0.36032222,4345.0,4344.4,0.4601]
[1755849204802,0.36032222,4345.0,4344.9,0.2944]
[1755849205004,3.36032222,4345.0,4344.9,0.7545]
[1755849206235,5.66181819,4345.0,4344.9,0.7545]
[1755849206609,3.36032222,4345.0,4344.9,0.7545]
[1755849206932,5.66181819,4345.0,4344.9,0.7545]
[1755849207802,5.66101819,4345.0,4344.9,0.7545]
[1755849208027,3.35952222,4345.0,4344.9,0.7545]
[1755849208399,5.66101819,4345.0,4344.9,0.7545]
[1755849208809,2.30160191,4344.8,4344.2,1.77]
[1755849209035,2.3016711,4344.7,4344.2,1.77]
[1755849209239,2.30176484,4344.5,4344.3,0.4601]
[1755849209441,3.0,4344.7,4344.2,1.77]
[1755849209629,0.35952222,4345.0,4344.2,1.77]
[1755849209827,2.30186681,4344.3,4344.2,1.77]
[1755849210029,2.30202578,4344.0,4343.9,0.001]
[1755849211129,3.0,4344.2,4343.9,0.4611]
[1755849211332,0.53012997,4345.2,4344.1,0.001]
[1755849211534,3.0,4345.1,4344.2,0.4601]
[1755849211845,2.301443,4345.1,4345.0,0.2944]
[1755849212047,0.179,4345.6,4345.0,0.7545]
[1755849212225,2.30133337,4345.4,4345.0,0.7545]
[1755849212425,2.30135129,4345.3,4345.0,0.2944]
[1755849212747,0.022,4345.8,4344.5,0.4601]
[1755849213043,2.30170786,4344.6,4344.5,0.4601]
[1755849213217,3.0,4345.3,4344.5,0.4601]
[1755849213417,2.30170786,4344.6,4344.5,0.4601]
[1755849213714,2.30176084,4344.5,4344.4,1.77]
[1755849214048,5.30176084,4344.5,4344.4,1.77]
[1755849215049,2.30134622,4345.3,4344.4,2.5245]
[1755849215242,2.30124194,4345.5,4344.5,0.4831176]
[1755849215544,0.4946565,4345.5,4345.4,0.2944]
[1755849215711,0.4946565,4345.5,4344.4,2.02255]
[1755849215712,2.30143718,4345.2,4344.8,0.4601]
[1755849216041,3.0,4345.6,4345.1,0.2944]
[1755849216210,0.4946565,4345.5,4345.1,0.2944]
[1755849216417,2.30133707,4345.3,4345.2,0.4601]
[1755849216610,5.79599357,4345.3,4345.2,0.7545]
[1755849217113,2.30148329,4345.1,4344.4,1.77]
[1755849217308,2.30155117,4344.9,4344.5,0.4601]
[1755849217523,2.301443,4345.1,4344.8,0.2944]
[1755849217741,2.79604843,4345.2,4344.9,0.4601]
[1755849217940,2.30148332,4345.1,4344.9,0.4601]
[1755849218642,2.30149597,4345.0,4344.9,0.4601]
[1755849219031,2.79611002,4345.1,4344.9,0.4601]
[1755849219236,0.4946565,4345.0,4344.4,2.201]
[1755849219543,3.0,4345.3,4344.4,1.77]
[1755849219544,1.47480918,4345.2,4344.4,1.77]
[1755849219718,2.30176084,4344.5,4344.4,1.77]
[1755849220045,2.30096084,4344.5,4344.4,1.77]
[1755849221436,2.79641734,4344.5,4344.1,0.432]
[1755849221658,2.79641734,4344.5,4344.2,0.431]
[1755849221659,0.4946565,4344.4,4344.2,0.431]
[1755849221954,0.4946565,4344.4,4344.3,0.431]
[1755849222158,0.4946565,4344.4,4344.3,0.7461]
[1755849222363,0.36034238,4344.9,4344.5,2.30171588]
[1755849222568,0.49663739,4345.4,4344.8,0.3151]
[1755849222849,0.49663739,4345.5,4344.9,0.431]
[1755849223048,0.49663739,4345.4,4344.9,0.431]
[1755849223220,0.49663739,4345.3,4344.6,5.751]
[1755849223419,0.49663739,4345.5,4345.3,0.3151]
[1755849223735,0.49663739,4345.4,4345.3,0.3151]
[1755849224737,2.7979215,4345.4,4345.3,0.3151]
[1755849225051,0.49663739,4345.4,4345.3,0.3151]
[1755849225258,0.49663739,4345.4,4345.3,0.7461]
[1755849225555,2.7979215,4345.4,4345.3,0.7461]
[1755849226358,0.49663739,4345.4,4345.3,0.7461]
[1755849226536,2.7979215,4345.4,4345.3,0.7461]
[1755849227022,0.49663739,4345.4,4345.3,0.7461]
[1755849227856,2.79783177,4345.6,4345.3,0.7461]
[1755849228054,2.79783177,4345.6,4345.3,0.3151]
[1755849228353,3.0,4345.5,4345.4,0.431]
[1755849228546,0.49663739,4345.5,4345.4,0.431]
[1755849229350,2.30122748,4345.6,4345.4,0.431]
[1755849229663,1.17648651,4345.6,4345.4,0.431]
[1755849229870,4.17648651,4345.6,4345.4,0.431]
[1755849230029,0.36030571,4345.7,4345.5,2.53911231]
[1755849230230,0.36030571,4345.7,4345.6,2.7321782]
[1755849230531,0.002,4346.2,4345.6,0.7461]
[1755849230733,0.002,4346.2,4345.7,2.7551365]
[1755849231046,0.002,4346.2,4346.1,2.61601346]
[1755849231243,0.002,4346.2,4346.1,6.59001346]
[1755849231449,0.002,4346.2,4346.1,7.02101346]
[1755849231865,0.002,4346.2,4346.1,0.7461]
[1755849232025,0.002,4346.2,4346.1,7.02001346]
[1755849232226,0.0012,4346.2,4346.1,7.02001346]
[1755849232729,0.0012,4346.2,4346.1,7.32722605]
[1755849234226,0.0012,4346.2,4346.1,0.7461]
[1755849234453,0.0012,4346.2,4346.1,4.7161]
[1755849234822,0.0012,4346.2,4346.1,4.7151]
[1755849235326,0.0012,4346.2,4346.1,0.7461]
[1755849235727,0.0012,4346.2,4346.1,4.7141]
[1755849236456,0.0012,4346.2,4346.1,7.01501346]
[1755849236758,0.0012,4346.2,4346.1,10.67501346]
[1755849237333,0.0012,4346.2,4346.1,10.79021346]
[1755849238355,0.0012,4346.2,4346.1,10.96321365]
[1755849239248,0.0012,4346.2,4346.1,6.99521365]
[1755849239446,0.0012,4346.2,4346.1,10.96121365]
[1755849241187,0.002,4346.3,4346.1,10.96121365]
[1755849241358,0.36008804,4348.6,4348.5,2.29964355]
[1755849241693,0.002,4349.7,4348.5,2.6313]
[1755849241997,0.002,4349.7,4348.6,3.983]
[1755849242281,0.099,4348.6,4348.5,1.77]
[1755849243155,0.099,4348.6,4348.5,5.753]
[1755849243471,0.099,4348.6,4348.5,5.752]
[1755849243979,2.29938551,4349.0,4348.5,5.752]
[1755849244278,0.35999558,4349.6,4348.6,0.0229959]
[1755849244479,0.0212,4348.8,4348.5,5.752]
[1755849246281,0.002,4348.6,4348.5,5.752]
[1755849247894,0.101,4348.6,4348.5,1.77]
[1755849248693,0.002,4348.6,4348.5,1.77]
[1755849248895,0.002,4348.6,4348.5,5.745]
[1755849249871,0.002,4348.6,4348.5,1.77]
[1755849250198,0.002,4348.6,4348.5,5.744]
[1755849250771,0.002,4348.6,4348.5,6.0509]
[1755849250965,0.002,4348.6,4348.5,6.4853]
[1755849251390,0.002,4348.6,4348.5,2.0769]
[1755849251591,0.002,4348.6,4348.5,2.5113]
[1755849251806,0.002,4348.6,4348.5,1.77]
[1755849252101,0.002,4348.6,4348.5,5.741]
[1755849252271,0.002,4348.6,4348.5,1.77]
[1755849252474,0.002,4348.6,4348.5,5.74]
[1755849252794,0.002,4348.6,4348.5,1.77]
[1755849252989,0.002,4348.6,4348.5,2.53429643]
[1755849253193,0.002,4348.6,4348.5,8.80393998]
[1755849253504,0.002,4348.6,4348.5,8.78094355]
[1755849254078,0.002,4348.6,4348.5,8.89614355]
[1755849255105,0.002,4348.6,4348.5,12.55614355]
[1755849256171,0.002,4348.6,4348.5,8.58614355]
[1755849256376,1e-08,4348.8,4348.7,5.95953779]
[1755849256578,1e-08,4348.8,4348.7,10.23543779]
[1755849256798,0.00120001,4349.3,4349.2,2.95927342]
[1755849257007,0.00120001,4349.3,4349.2,7.25816615]
[1755849257211,0.00120001,4349.3,4349.2,7.35037342]
[1755849257394,0.00120001,4349.3,4349.2,7.78477342]
[1755849257596,0.00120001,4349.3,4349.2,7.78377342]
[1755849257991,0.00120001,4349.3,4349.2,3.81577342]
[1755849258190,0.00120001,4349.3,4349.2,7.78377342]
[1755849258603,0.00120001,4349.3,4349.2,3.81577342]
[1755849258911,0.00120001,4349.3,4349.2,7.80476615]
[1755849259110,0.00120001,4349.3,4349.2,7.78177342]
[1755849260408,0.00120001,4349.3,4349.2,10.78177342]
[1755849261191,0.002,4349.5,4349.4,5.9591677]
[1755849261390,0.002,4349.5,4349.4,11.9980677]
[1755849261615,0.002,4349.5,4349.4,12.4324677]
[1755849262306,0.002,4349.5,4349.4,27.10448115]
[1755849262518,0.002,4349.5,4349.4,23.14048115]
[1755849262711,0.002,4349.7,4349.6,2.95906198]
[1755849262876,0.002,4349.7,4349.6,10.25195259]
[1755849263082,0.002,4349.7,4349.6,10.77856198]
[1755849263983,0.002,4349.7,4349.6,10.77756198]
[1755849264186,0.002,4349.7,4349.6,6.81556198]
[1755849264379,0.002,4349.7,4349.6,10.77656198]
[1755849264992,0.002,4349.7,4349.6,6.81556198]
[1755849265191,0.002,4349.7,4349.6,10.77756198]
[1755849268395,1e-08,4349.7,4349.6,10.77756198]
[1755849268618,0.002,4350.0,4349.9,5.95890342]
[1755849268822,0.002,4350.0,4349.9,30.53701687]
[1755849269108,0.0012,4350.0,4349.9,27.01341687]
[1755849269314,0.0012,4350.0,4349.9,12.34140342]
[1755849270039,0.0012,4350.0,4349.9,15.55810342]
[1755849270186,0.0012,4350.0,4349.9,16.29940342]
[1755849270587,0.0012,4350.0,4349.9,12.34140342]
[1755849270914,0.0012,4350.0,4349.9,15.86600342]
[1755849271115,0.0012,4350.0,4349.9,16.30040342]
[1755849272523,0.0012,4350.0,4349.9,12.34140342]
[1755849273096,0.0012,4350.0,4349.9,11.90700342]
[1755849273333,0.0012,4350.0,4349.9,14.89610342]
[1755849273334,0.3036,4350.0,4349.9,14.89610342]
[1755849273686,0.3036,4350.0,4349.9,9.5972]
[1755849273905,0.4827,4350.0,4349.9,5.526]
[1755849274210,0.4827,4350.0,4349.9,9.482]
[1755849275132,0.0012,4350.0,4349.9,11.78090342]
[1755849275494,0.0012,4350.0,4349.9,13.29740342]
[1755849275835,0.0012,4350.0,4349.9,16.29740342]
[1755849276034,0.02,4350.8,4350.5,2.95858636]
[1755849276196,0.02,4350.8,4350.5,8.99048636]
[1755849276407,0.02,4350.8,4350.5,9.10568636]
[1755849276603,0.02,4350.8,4350.5,5.58308636]
[1755849276818,0.02,4350.8,4350.5,10.1015835]
[1755849277019,0.02,4350.8,4350.5,24.09689981]
[1755849277314,0.02,4350.8,4350.7,2.9584807]
[1755849277530,0.02,4350.8,4350.7,10.2453655]
[1755849277703,0.02,4350.8,4350.7,10.6567807]
[1755849278214,1e-08,4350.8,4350.7,6.6997807]
[1755849278404,1e-08,4350.8,4350.7,10.7867807]
[1755849278600,1e-08,4350.8,4350.7,6.3953807]
[1755849278802,1e-08,4350.8,4350.7,7.8564807]
[1755849279147,0.09900001,4350.8,4350.7,8.0244807]
[1755849279299,1e-08,4350.8,4350.7,8.0244807]
[1755849279717,1e-08,4350.8,4350.7,8.6844807]
[1755849280137,1e-08,4350.8,4350.7,8.0264807]
[1755849280138,0.09700001,4350.8,4350.7,8.0264807]
[1755849280338,1e-08,4350.8,4350.7,4.0664807]
[1755849280637,1e-08,4350.8,4350.7,8.0494655]
[1755849280832,1e-08,4350.8,4350.7,8.0264807]
[1755849281031,1e-08,4350.8,4350.7,11.0264807]
[1755849281232,0.00120001,4351.1,4351.0,2.29832222]
[1755849281431,0.09820001,4351.1,4351.0,6.28030544]
[1755849281730,0.47870001,4351.1,4351.0,3.959]
[1755849281906,0.47870001,4351.1,4350.7,4.18163028]
[1755849282106,0.3805,4351.0,4350.8,3.958]
[1755849282333,0.4775,4350.9,4350.7,1.768]
[1755849282632,0.0998,4350.9,4350.8,3.958]
[1755849283130,0.4775,4350.9,4350.8,3.958]
[1755849283555,0.0998,4350.9,4350.8,3.98098427]
[1755849283853,0.0998,4350.9,4350.8,3.957]
[1755849284006,0.0998,4350.9,4350.7,1.768]
[1755849284346,0.0998,4350.9,4350.8,3.957]
[1755849284533,0.0998,4350.9,4350.8,6.25542787]
[1755849284906,0.0998,4350.9,4350.8,3.957]
[1755849285409,0.4775,4350.9,4350.8,3.955]
[1755849286005,0.0998,4350.9,4350.8,3.955]
[1755849286451,0.0998,4350.9,4350.8,5.722]
[1755849286809,0.0998,4350.9,4350.8,8.02042787]
[1755849287538,0.0998,4350.9,4350.8,8.02442787]
[1755849287738,0.00120001,4351.1,4350.9,2.29835829]
[1755849287936,0.00120001,4351.1,4351.0,3.98098322]
[1755849288260,0.09820001,4351.1,4351.0,6.27930544]
[1755849288549,0.00120001,4351.1,4351.0,6.25632222]
[1755849288730,0.00120001,4351.1,4351.0,6.25532222]
[1755849289957,0.00700001,4351.1,4351.0,2.29832222]
[1755849290355,0.00700001,4351.1,4351.0,6.25432222]
[1755849291445,0.00120001,4351.1,4351.0,6.25432222]
[1755849292218,0.00120001,4351.1,4351.0,2.29832222]
[1755849292418,0.00120001,4351.1,4351.0,6.25232222]
[1755849293021,0.00120001,4351.1,4351.0,6.53982222]
[1755849293414,0.00040001,4351.1,4351.0,6.53982222]
[1755849293843,0.00040001,4351.1,4351.0,6.98462222]
[1755849294516,0.00040001,4351.1,4351.0,7.64462222]
[1755849295084,0.00040001,4351.1,4351.0,10.75982222]
[1755849295251,0.00040001,4351.1,4351.0,13.18482222]
[1755849295452,0.00040001,4351.1,4351.0,10.75982222]
[1755849295669,0.002,4351.7,4351.0,10.75982222]
[1755849295670,0.002,4351.7,4351.3,0.66]
[1755849295951,0.002,4351.7,4351.6,21.03271878]
[1755849296156,0.002,4351.7,4351.6,26.75071878]
[1755849296449,0.002,4351.7,4351.6,27.19551878]
[1755849296750,0.002,4351.7,4351.6,11.86650533]
[1755849296951,0.002,4351.7,4351.6,11.87350533]
[1755849298023,0.002,4351.7,4351.6,7.46770533]
[1755849298261,0.002,4351.7,4351.6,11.13920533]
[1755849298771,0.101,4351.7,4351.6,4.18020533]
[1755849298972,0.101,4351.7,4351.6,5.74898005]
[1755849299141,0.002,4351.7,4351.6,8.02400533]
[1755849299334,0.101,4351.7,4351.6,1.767]
[1755849299640,0.101,4351.7,4351.6,5.728]
[1755849300239,0.101,4351.7,4351.6,1.767]
[1755849300433,0.101,4351.7,4351.6,5.75098005]
[1755849300640,0.101,4351.7,4351.6,5.728]
[1755849301159,0.101,4351.7,4351.6,1.767]
[1755849301362,0.101,4351.7,4351.6,5.728]
[1755849301739,0.101,4351.7,4351.6,1.767]
[1755849302057,0.101,4351.7,4351.6,5.725]
[1755849302262,0.101,4351.7,4351.6,1.767]
[1755849302471,2.77665252,4351.7,4351.6,5.725]
[1755849302637,3.28629789,4351.7,4351.6,1.767]
[1755849302830,3.28629789,4351.7,4351.6,5.725]
[1755849303159,0.61064537,4351.7,4351.6,1.767]
[1755849303330,0.101,4351.7,4351.6,5.725]
[1755849303728,0.4787,4351.7,4351.6,5.725]
[1755849303929,2.77665252,4351.7,4351.6,5.725]
[1755849304129,2.77665252,4351.7,4351.6,1.767]
[1755849304360,3.28630576,4351.7,4351.6,5.732]
[1755849304858,3.28630576,4351.7,4351.6,1.767]
[1755849305064,3.28630576,4351.7,4351.6,5.732]
[1755849305432,3.28630576,4351.7,4351.6,5.731]
[1755849305633,3.28550576,4351.7,4351.6,5.731]
[1755849306580,2.90780576,4351.7,4351.6,5.731]
[1755849306870,3.28550576,4351.7,4351.6,5.73]
[1755849307166,0.98755324,4351.7,4351.6,5.73]
[1755849307376,2.39815252,4351.7,4351.6,5.73]
[1755849307582,0.1002,4351.7,4351.6,5.73]
[1755849308459,0.1002,4351.7,4351.6,1.767]